Workbook

Sheet ОВО
B3: Двухскатная кровля | K3: Плоская кровля | R3: Молниеприемная мачта

Sheet Плоская кровля
A1: Исходные данные: | I1: Спецификация молниеприемного устройства:
I2: № | J2: Наименование | K2: Тип | L2: Арт. | M2: Ед.изм. | N2: Кол. | O2: Примечание
A3: А= | B3: 10 | C3: м; ширина здания | I3: 1 | J3: Круглый проводник из оцинкованной стали Ø=8мм | K3: RD 8 FT | L3: 5021081 | M3: м | N3: 80
A4: В= | B4: 10 | C4: м; длина здания | I4: 2 | J4: Компенсатор проволоки | K4: 172 AR | L4: 5218926 | M4: шт | N4: 0
A5: Н= | B5: 10 | C5: м; высота здания | I5: 3 | J5: Соединитель Vario для быстрого монтажа | K5: 249 8-10 ST | L5: 5311500 | M5: шт | N5: 9
I6: 4 | J6: Держатель для плоской кровли | K6: 165 MBG-8 | L6: 5218691 | M6: шт | N6: 20
B7: 5 | C7: м; шаг ячейки | I7: 5 | J7: Универсальный клеммный зажим для для круглых проводников Rd 8-10мм | K7: 324 S-FT | L7: 5326303 | M7: шт | N7: 58
I8: 6 | J8: Соединительная скоба-перемычка | K8: 288 DIN | L8: 5320712 | M8: шт | N8: 58
A9: Размер ячеек в зависимости от класса МЗ: | I9: 7 | J9: Держатель для круглых проводников Rd 8-10мм, с перемычкой | K9: 113 Z8-10 | L9: 5229960 | M9: шт | N9: 29
A10: • класс I = 5 х 5м; | I10: 8 | J10: Разделительный зажим для круглых проводников Rd 8-10 и плоских проводников FL 30-40 мм | K10: 233 A VA | L10: 5336457 | M10: шт | N10: 2
A11: • класс II = 10 х 10м;
A12: • класс III и IV = 15 х 15м; | I12: Спецификация заземляющего устройства:
I13: № | J13: Наименование | K13: Тип | L13: Арт. | M13: Ед.изм. | N13: Кол.
A14: Данные для расчета сопротивления заземляющего устройства: | I14: 9 | J14: Плоский проводник из оцинкованной стали 40x4мм | K14: 5052 DIN | L14: 5019355 | M14: м | N14: 48
B15: Глина | C15: - удел. сопротивление грунта, Ом·м | I15: 10 | J15: Крестовой соединитель DIN для плоских проводников 40мм | K15: 256 A-DIN | L15: 5314666 | M15: шт | N15: 10
B16: 3 зона | C16: - климатическая зона | I16: 11 | J16: Универсальный соединитель для стержней заземления | K16: 2760 20 FT | L16: 5001641 | M16: шт | N16: 8
B17: 10 | C17: - нормируемое сопротивление ПУЭ | I17: 12 | J17: Стержень заземления OMEX | K17: 219 20 FT | L17: 5000017 | M17: шт | N17: 16
I18: 13 | J18: Наконечник для стержня заземления OMEX | K18: 1819 20 | L18: 3041204 | M18: шт | N18: 8
A19: Климатические зоны: | I19: 14 | J19: Ударный наконечник для стержней OMEX | K19: 1820 20 | L19: 3042200 | M19: шт | N19: 1
A20: 1 зона | I20: 15 | J20: Антикоррозионная лента | K20: 356 50 | L20: 2360055 | M20: шт | N20: 3
A21: 2 зона
A22: 3 зона | I22: Параметры заземляющего устройства:
A23: 4 зона | I23: № | J23: Наименование параметра | K23: Величина | L23: Ед.изм.
I24: 1 | J24: Сопротивление одного вертикального электрода | K24: 23.38647723 | L24: Ом
I25: 2 | J25: Сопротивление одиночного заземлителя с учетом коэффициента использования | K25: 34.90518989 | L25: Ом
I26: 3 | J26: Сопротивление соединительной полосы с учетом коэффициента использования | K26: 31.93518487 | L26: Ом
I27: 4 | J27: Сопротивление вертикальных заземлителей с учетом соединительной полосы | K27: 7.388075704 | L27: Ом
I28: 5 | J28: Минимальное количество вертикальных заземлителей с учетом соединительной полосы | K28: 8 | L28: шт
A29: (P.S. Для открытия файла в Автокаде, нажми 2 раза левой кнопкой мыши)

Sheet Двухскатная кровля
A1: Исходные данные: | J1: Спецификация молниеприемного устройства:
J2: № | K2: Наименование | L2: Тип | M2: Арт. | N2: Ед.изм. | O2: Кол. | P2: Примечание
A3: А= | B3: 20 | C3: м; ширина здания | J3: 1 | K3: Круглый проводник Ø=8мм | L3: RD 8 FT | M3: 5021081 | N3: м | O3: 178
A4: В= | B4: 10 | C4: м; длина здания | J4: 2 | K4: Соединитель Vario для быстрого монтажа | L4: 249 8-10 FT | M4: 5311500 | N4: шт | O4: 40
A5: Н= | B5: 7 | C5: м; высота здания | J5: 3 | K5: Держатель проволоки на коньке | L5: 132 N-DK | M5: 5202566 | N5: шт | O5: 72
J6: 4 | K6: Держатель проволоки на скатной кровле | L6: 157 FK-VA 230 | M6: 5215544 | N6: шт | O6: 143
B7: 50 | C7: м; кол-во проволоки на коньке | J7: 5 | K7: Держатель для водосточных труб | L7: 262 | M7: 5316014 | N7: шт | O7: 4
B8: 100 | C8: м; кол-во проволоки на скатной кровле | J8: 6 | K8: Держатель для круглых проводников Rd 8-10мм, с перемычкой | L8: 113 Z8-10 | M8: 5229960 | N8: шт | O8: 40
J9: 7 | K9: Разделительный зажим для круглых проводников Rd 8-10 и плоских проводников FL 30-40 мм | L9: 233 A VA | M9: 5336457 | N9: шт | O9: 4
B10: Гор.цинк | C10: материал молниеприемного устройства
J11: Спецификация заземляющего устройства:
A12: Данные для расчета сопротивления заземляющего устройства: | J12: № | K12: Наименование | L12: Тип | M12: Арт. | N12: Ед.изм. | O12: Кол.
B13: Глина | C13: - удел. сопротивление грунта, Ом·м | J13: 8 | K13: Плоский проводник из оцинкованной стали 40x4мм | L13: 5052 DIN | M13: 5019355 | N13: м | O13: 68
B14: 4 зона | C14: - климатическая зона | J14: 9 | K14: Крестовой соединитель DIN для плоских проводников 40мм | L14: 256 A-DIN | M14: 5314666 | N14: шт | O14: 6
B15: 20 | C15: - нормируемое сопротивление ПУЭ | J15: 10 | K15: Универсальный соединитель для стержней заземления | L15: 2760 20 FT | M15: 5001641 | N15: шт | O15: 4
J16: 11 | K16: Стержень заземления OMEX | L16: 219 20 FT | M16: 5000017 | N16: шт | O16: 8
A17: Климатические зоны: | J17: 12 | K17: Наконечник для стержня заземления OMEX | L17: 1819 20 | M17: 3041204 | N17: шт | O17: 4
A18: 1 зона | J18: 13 | K18: Ударный наконечник для стержней OMEX | L18: 1820 20 | M18: 3042200 | N18: шт | O18: 1
A19: 2 зона | J19: 14 | K19: Антикоррозионная лента | L19: 356 50 | M19: 2360055 | N19: шт | O19: 1
A20: 3 зона
A21: 4 зона | J21: Параметры заземляющего устройства:
J22: № | K22: Наименование параметра | L22: Величина | M22: Ед.изм.
J23: 1 | K23: Сопротивление одного вертикального электрода | L23: 22.36967387 | M23: Ом
J24: 2 | K24: Сопротивление одиночного заземлителя с учетом коэффициента использования | L24: 33.38757294 | M24: Ом
J25: 3 | K25: Сопротивление соединительной полосы с учетом коэффициента использования | L25: 44.6433533 | M25: Ом
J26: 4 | K26: Сопротивление вертикальных заземлителей с учетом соединительной полосы | L26: 16.41131151 | M26: Ом
J27: 5 | K27: Минимальное количество вертикальных заземлителей с учетом соединительной полосы | L27: 4 | M27: шт
A28: (P.S. Для открытия файла в Автокаде, нажми 2 раза левой кнопкой мыши)

Sheet Молниеприемник
A1: Исходные данные: | H1: Расчет зоны защиты молниеприемной мачты:
H2: Параметр | I2: Наименование | J2: Величина | K2: Ед.изм.
A3: Н= | B3: 8 | C3: м, высота молниеприемника | H3: Н | I3: Высота молниеприемниой мачты | J3: 8 | K3: м
A4: Нх= | B4: 0.5 | C4: м, высота защищаемого объекта | H4: Нх | I4: Высота защищаемого объекта | J4: 0.5 | K4: м
A5: Рз= | B5: 0.9 | C5: в соответствии с "СО 153-34.21.122-2003" | H5: Но | I5: Высота зоны защиты | J5: 6.8 | K5: м
H6: Ro | I6: Радиус защиты у основания молниеприемника | J6: 9.6 | K6: м
B7: на плоской кровле | C7: тип крепления | H7: Rx | I7: Радиус защиты на высоте защищаемого объекта | J7: 8.894117647 | K7: м
B8: 3 | C8: шт, количество молниеприемных мачт
H9: Спецификация оборудования молниеприемной мачты:
A10: Тип крепления: | H10: № | I10: Наименование | J10: Тип | K10: Арт. | L10: Кол. | M10: Ед.изм.
A11: 1 | B11: на плоской кровле | H11: 1 | I11: Молниеприемная мачта | J11: 101 3B-8000 | K11: 5402880 | L11: 3 | M11: шт
A12: 2 | B12: к вент.шахте | H12: 2 | I12: Треножный штатив IsFang, 1,0м | J12: isFang 3B-150 | K12: 5408969 | L12: 3 | M12: шт
H13: 3 | I13: Бетонное основание FangFix, без рамки | J13: F-FIX-S16 | K13: 5403227 | L13: 27 | M13: шт
H14: 4 | I14: Рамка бетонного основания FangFix | J14: F-FIX-B16 | K14: 5403228 | L14: 9 | M14: шт
H15: 5 | I15: Стержень резьбовой isFang-3B | J15: isFang 3B-G3 | K15: 5408973 | L15: 9 | M15: шт
H16: 6 | I16: Ленточная скоба подключения проволоки | J16: 927 1 | K16: 5057515 | L16: 3 | M16: шт
A17: (P.S. Для открытия файла в Автокаде, нажми 2 раза левой кнопкой мыши)

Sheet Лист4 (hidden)
A1: Шаг ячейки: | C1: Норма сопротивления: | F1: Удельное сопротивление почвы: | J1: Тип МЗ: | L1: высота молниеприемника | P1: надежность Рз
A2: 5 | C2: 10 | F2: Глина | J2: Гор.цинк | L2: 1.5 | M2: =Молниеприемник!B3 -> 8 | P2: 0.9
A3: 10 | C3: 20 | F3: Суглинок | J3: Медь | L3: 2 | P3: 0.99
A4: 15 | C4: 30 | F4: Супесь | J4: Нержавейка | L4: 2.5 | P4: 0.999
F5: Лёсс | L5: 3
F6: Торф | L6: 3.5
F7: Песок | L7: 4
F8: Чернозем | L8: 4.5
L9: 5
L10: 5.5
L11: 6
L12: 6.5
L13: 7
L14: 7.5
L15: 8

Sheet Расчет зон защиты МП
B1: СО 153-34.21.122-2003 | R1: РД 34.21.122-87
A2: одиночный стержневой молниеотвод | Q2: одиночный стержневой молниеотвод | U2: 1 | V2: 2 | W2: ср.знач.
A3: высота молниеотвода (-ов), м | D3: h= | E3: 19 | F3: 5 | Q3: высота молниеотвода (-ов), м | T3: h= | U3: 2.713 | V3: =F3 -> 5
A4: надежность защиты | D4: Pз = | E4: 0.9 | Q4: зона защиты | T4: ЗОНА | U4: а | Z4: =0.85*30.5 -> 25.925
A5: высота конуса, м | D5: h0= | E5: =IF($E$4=0.9, 0.85*$E$3, IF($E$4=0.99, IF($E$3<=100, 0.8*$E$3, (0.8-10^-3*($E$3-100))*$E$3), IF($E$4=0.999, IF($E$3<=30, 0.7*$E$3, IF($E$3<=100, (0.7-7.14*10^-4*($E$3-30))*$E$3, (0.65-10^-3*($E$3-100))*$E$3)), "неверная надежность защиты"))) -> 16.15 | F5: =IF($E$4=0.9, 0.85*$F$3, IF($E$4=0.99, IF($F$3<=100, 0.8*$F$3, (0.8-10^-3*($F$3-100))*$F$3), IF($E$4=0.999, IF($F$3<=30, 0.7*$F$3, IF($F$3<=100, (0.7-7.14*10^-4*($F$3-30))*$F$3, (0.65-10^-3*($F$3-100))*$F$3)), "неверная надежность защиты"))) -> 4.25 | Q5: высота конуса, м | T5: h0= | U5: =IF($U$4="А", IF($U$3>150, (0.85-1.7*10^-3*($U$3-150))*$U$3, 0.85*$U$3), IF($U$4="Б", IF($U$3>150, (0.92-0.8*10^-3*($U$3-150))*$U$3, 0.92*$U$3), "неверная зона защиты")) -> 2.30605 | V5: =IF($U$4="А", IF($V$3>150, (0.85-1.7*10^-3*($V$3-150))*$V$3, 0.85*$V$3), IF($U$4="Б", IF($V$3>150, (0.92-0.8*10^-3*($V$3-150))*$V$3, 0.92*$V$3), "неверная зона защиты")) -> 4.25 | Z5: =(1.1-0.002*30.5)*30.5 -> 31.6895
A6: радиус конуса, м | D6: r0= | E6: =IF($E$4=0.9, IF($E$3<=100, 1.2*$E$3, (1.2-10^-3*($E$3-100))*$E$3), IF($E$4=0.99, IF($E$3<=30, 0.8*$E$3, IF($E$3<=100, (0.8-1.43*10^-3*($E$3-30))*$E$3, 0.7*$E$3)), IF($E$4=0.999, IF($E$3<=30, 0.6*$E$3, IF($E$3<=100, (0.6-1.43*10^-3*($E$3-30))*$E$3, (0.5-2*10^-3*($E$3-100))*$E$3)), "неверная надежность защиты"))) -> 22.8 | F6: =IF($E$4=0.9, IF($F$3<=100, 1.2*$F$3, (1.2-10^-3*($F$3-100))*$F$3), IF($E$4=0.99, IF($F$3<=30, 0.8*$F$3, IF($F$3<=100, (0.8-1.43*10^-3*($F$3-30))*$F$3, 0.7*$F$3)), IF($E$4=0.999, IF($F$3<=30, 0.6*$F$3, IF($F$3<=100, (0.6-1.43*10^-3*($F$3-30))*$F$3, (0.5-2*10^-3*($F$3-100))*$F$3)), "неверная надежность защиты"))) -> 6 | Q6: радиус конуса, м | T6: r0= | U6: =IF($U$4="А", IF($U$3>150, (0.8-1.8*10^-3*($U$3-150))*$U$3, (1.1-0.002*$U$3)*$U$3), IF($U$4="Б", IF($U$3>150, 225, 1.5*$U$3), "неверная зона защиты")) -> 2.969579262 | V6: =IF($U$4="А", IF($V$3>150, (0.8-1.8*10^-3*($V$3-150))*$V$3, (1.1-0.002*$V$3)*$V$3), IF($U$4="Б", IF($V$3>150, 225, 1.5*$V$3), "неверная зона защиты")) -> 5.45 | Z6: =Z4-(0.17+0.0003*30.5)*(29.05-30.5) -> 26.1847675
A8: высота зоны защиты | D8: hx1= | E8: 4 | Q8: высота зоны защиты | T8: hx1= | U8: 1.5
D9: hx2= | E9: 17 | T9: hx2= | U9: =E9 -> 17
D10: hx3= | E10: 14 | T10: hx3= | U10: 14
D11: hx4= | E11: 11 | T11: hx4= | U11: 11 | Y11: =(1.1-0.002*30.5)*(30.5-17/0.85) -> 10.9095
D12: hx5= | E12: 6 | T12: hx5= | U12: 6 | Y12: =Z5*(Z6-17)/Z6 -> 11.11564919
A15: радиус зоны защиты | D15: rx1= | E15: =IF($E8>$E$5, 0, $E$6*($E$5-$E8)/$E$5) -> 17.15294118 | F15: =IF($E8>$F$5, 0, $F$6*($F$5-$E8)/$F$5) -> 0.3529411765 | Q15: радиус зоны защиты | T15: rx1= | U15: =IF($U$4="А", IF(U$3>150, (0.85-1.7*10^-3*(U$3-150))*U$3*(1-$U8/(0.85-1.7*10^-3*(U$3-150))/U$3), (1.1-0.002*U$3)*(U$3-$U8/0.85)), IF($U$4="Б", IF(U$3>150, 225-225*$U8/(0.92-0.8*10^-3*(U$3-150))/U$3, 1.5*(U$3-$U8/0.92)), "неверная зона защиты")) -> 1.037978086 | V15: =IF($U$4="А", IF(V$3>150, (0.85-1.7*10^-3*(V$3-150))*V$3*(1-$U8/(0.85-1.7*10^-3*(V$3-150))/V$3), (1.1-0.002*V$3)*(V$3-$U8/0.85)), IF($U$4="Б", IF(V$3>150, 225-225*$U8/(0.92-0.8*10^-3*(V$3-150))/V$3, 1.5*(V$3-$U8/0.92)), "неверная зона защиты")) -> 3.526470588 | Y15: =3.282*(1-0.2*(6-3/3)) -> 0
D16: rx2= | E16: =IF($E9>$E$5, 0, $E$6*($E$5-$E9)/$E$5) -> 0 | F16: =IF($E9>$F$5, 0, $F$6*($F$5-$E9)/$F$5) -> 0 | T16: rx2= | U16: =IF($U$4="А", IF(U$3>150, (0.85-1.7*10^-3*(U$3-150))*U$3*(1-$U9/(0.85-1.7*10^-3*(U$3-150))/U$3), (1.1-0.002*U$3)*(U$3-$U9/0.85)), IF($U$4="Б", IF(U$3>150, 225-225*$U9/(0.92-0.8*10^-3*(U$3-150))/U$3, 1.5*(U$3-$U9/0.92)), "неверная зона защиты")) -> -18.92190074 | V16: -16.35
D17: rx3= | E17: =IF($E10>$E$5, 0, $E$6*($E$5-$E10)/$E$5) -> 3.035294118 | F17: 0 | T17: rx3= | U17: -15.05869839 | V17: -12.50294118
D18: rx4= | E18: 7.270588235 | F18: 0 | T18: rx4= | U18: -11.19549603 | V18: -8.655882353
D19: rx5= | E19: 14.32941176 | F19: 0 | T19: rx5= | U19: -4.756825444 | V19: -2.244117647
A21: двойной стержневой молниеотвод | Q21: двойной стержневой молниеотвод
A22: расстояние м/ду молниотводами, м | D22: L= | E22: 6 | Q22: расстояние м/ду молниотводами, м | T22: L= | U22: 5.4
A23: предельное расстояние, м | D23: Lmax= | E23: =IF($E$4=0.9, IF($F$3<=30, 5.75*$F$3, IF($F$3<=100, (5.75-3.57*10^-3*($F$3-30))*$F$3, 5.5*$F$3)), IF($E$4=0.99, IF($F$3<=30, 4.75*$F$3, IF($F$3<=100, (4.75-3.57*10^-3*($F$3-30))*$F$3, 4.5*$F$3)), IF($E$4=0.999, IF($F$3<=30, 4.25*$F$3, IF($F$3<=100, (4.25-3.57*10^-3*($F$3-30))*$F$3, 4*$F$3)), "неверная надежность защиты"))) -> 28.75 | F23: =IF($E$4=0.9, IF($F$3<=30, 5.75*$F$3, IF($F$3<=100, (5.75-3.57*10^-3*($F$3-30))*$F$3, 5.5*$F$3)), IF($E$4=0.99, IF($F$3<=30, 4.75*$F$3, IF($F$3<=100, (4.75-3.57*10^-3*($F$3-30))*$F$3, 4.5*$F$3)), IF($E$4=0.999, IF($F$3<=30, 4.25*$F$3, IF($F$3<=100, (4.25-3.57*10^-3*($F$3-30))*$F$3, 4*$F$3)), "неверная надежность защиты"))) -> 28.75 | G23: =(E23+F23)/2 -> 28.75 | Q23: предельное расстояние, м | T23: Lmax= | U23: =IF(U4="А", 4*U3, IF(U4="Б", 6*U3, "неверная зона защиты")) -> 10.852
A24: минимальное расстояние, м | D24: Lc= | E24: =IF($E$4=0.9, 2.5*$E$3, IF(OR($E$4=0.99, $E$4=0.999), IF($E$3<=30, 2.25*$E$3, IF($E$3<=100, (2.25-0.0107*($E$3-30))*$E$3, 1.5*$E$3)), "неверная надежность защиты")) -> 47.5 | F24: =IF($E$4=0.9, 2.5*$F$3, IF(OR($E$4=0.99, $E$4=0.999), IF($F$3<=30, 2.25*$F$3, IF($F$3<=100, (2.25-0.0107*($F$3-30))*$F$3, 1.5*$F$3)), "неверная надежность защиты")) -> 12.5 | G24: =(E24+F24)/2 -> 30 | Q24: высота средней точки, м | T24: hc= | U24: =IF($U$4="А",$U$5-(0.17+3*10^-4*$U$3)*($U$22-$U$3), IF($U$4="Б", IF($U$22<=$U$3, $U$5, $U$5-0.14*($U$22-$U$3)), "неверная зона защиты")) -> 1.847073051 | V24: =IF($U$4="А",$V$5-(0.17+3*10^-4*$V$3)*($U$22-$V$3), IF($U$4="Б", IF($U$22<=$V$3, $V$5, $V$5-0.14*($U$22-$V$3)), "неверная зона защиты")) -> 4.1814 | W24: =(U24+V24)/2 -> 3.014236525
A25: высота средней точки, м | D25: hc= | E25: =IF($E$22<$E$24, $E$5, ($E$23-$E$22)/($E$23-$E$24)*$E$5) -> 16.15 | F25: =IF($E$22<$F$24, $F$5, ($F$23-$E$22)/($F$23-$F$24)*$F$5) -> 4.25 | G25: =(E25+F25)/2 -> 10.2 | Q25: ширина средней зоны, м | T25: rc= | U25: =IF($U$4="А", IF($U$22<=$U$3, $U$6, $U$6*(1-0.2*($U$22-2*$U$3)/$U$3)), IF($U$4="Б", $U$6, "неверная зона защиты")) -> 2.975271047 | V25: =IF($U$4="А", IF($U$22<=$V$3, $V$6, $V$6*(1-0.2*($U$22-$V$3)/$V$3)), IF($U$4="Б", $V$6, "неверная зона защиты")) -> 5.3628 | W25: =(U25+V25)/2 -> 4.169035523
A27: =$E$6*($E$25-$E8)/$E$25 -> 17.15294118 | B27: =$F$6*($F$25-$E8)/$F$25 -> 0.3529411765 | D27: =IF($E8>$E$25, "lx1=", "rcx1=") -> rcx1= | E27: =IF($E8>$E$25, $E$22*($E$5-$E8)/2/($E$5-$E$25), $E$6*($E$25-$E8)/$E$25) -> 17.15294118 | F27: =IF($E8>$F$25, $E$22*($F$5-$E8)/2/($F$5-$F$25), $F$6*($F$25-$E8)/$F$25) -> 0.3529411765 | G27: =(A27+B27)/2 -> 8.752941176 | T27: rcx1= | U27: =IF($U$4="А", IF($U$22<=$U$3, $U$6*($U$24-$U8)/$U$24, $U$25*($U$24-$U8)/$U$24), IF($U$4="Б", IF($U$22<=$U$3, $U15, $U$6*($U$24-$U8)/$U$24), "неверная зона защиты")) -> 0.5590663555 | V27: =IF($U$4="А", IF($U$22<=$V$3, $V$6*($V$24-$U8)/$V$24, $V$25*($V$24-$U8)/$V$24), IF($U$4="Б", IF($U$22<=$V$3, $V15, $V$6*($V$24-$U8)/$V$24), "неверная зона защиты")) -> 3.438994576 | W27: =$W$25*($W$24-$U8)/$W$24 -> 2.094363137
A28: =$E$6*($E$25-$E9)/$E$25 -> -1.2 | B28: =$F$6*($F$25-$E9)/$F$25 -> -18 | D28: =IF($E9>$E$25, "lx2=", "rcx2=") -> lx2= | E28: =IF($E9>$E$25, $E$22*($E$5-$E9)/2/($E$5-$E$25), $E$6*($E$25-$E9)/$E$25) ->  | F28: =IF($E9>$F$25, $E$22*($F$5-$E9)/2/($F$5-$F$25), $F$6*($F$25-$E9)/$F$25) ->  | G28: =(A28+B28)/2 -> -9.6 | T28: rcx2= | U28: =IF($U$4="А", IF($U$22<=$U$3, $U$6*($U$24-$U9)/$U$24, $U$25*($U$24-$U9)/$U$24), IF($U$4="Б", IF($U$22<=$U$3, $U16, $U$6*($U$24-$U9)/$U$24), "неверная зона защиты")) -> -24.40838212 | V28: =IF($U$4="А", IF($U$22<=$V$3, $V$6*($V$24-$U9)/$V$24, $V$25*($V$24-$U9)/$V$24), IF($U$4="Б", IF($U$22<=$V$3, $V16, $V$6*($V$24-$U9)/$V$24), "неверная зона защиты")) -> -16.44032814 | W28: =$W$25*($W$24-$U9)/$W$24 -> -19.34391819
A29: 3.035294118 | B29: -13.76470588 | D29: =IF($E10>$E$25, "lx3=", "rcx3=") -> rcx3= | E29: 3.035294118 | G29: -5.364705882 | T29: rcx3= | U29: -19.57597274 | V29: -12.59271729 | W29: -15.19457342
A30: 7.270588235 | B30: -9.529411765 | D30: =IF($E11>$E$25, "lx4=", "rcx4=") -> rcx4= | E30: 7.270588235 | F30: =IF($E11>$F$25, $E$22*($F$5-$E11)/2/($F$5-$F$25), $F$6*($F$25-$E11)/$F$25) ->  | G30: -1.129411765 | T30: rcx4= | U30: -14.74356336 | V30: -8.745106443 | W30: =$W$25*($W$24-$U11)/$W$24 -> -11.04522864
A31: 14.32941176 | B31: -2.470588235 | D31: =IF($E12>$E$25, "lx5=", "rcx5=") -> rcx5= | E31: 14.32941176 | G31: 5.929411765 | T31: rcx5= | U31: =IF($U$4="А", IF($U$22<=$U$3, $U$6*($U$24-$U12)/$U$24, $U$25*($U$24-$U12)/$U$24), IF($U$4="Б", IF($U$22<=$U$3, $U19, $U$6*($U$24-$U12)/$U$24), "неверная зона защиты")) -> -6.689547718 | V31: =IF($U$4="А", IF($U$22<=$V$3, $V$6*($V$24-$U12)/$V$24, $V$25*($V$24-$U12)/$V$24), IF($U$4="Б", IF($U$22<=$V$3, $V19, $V$6*($V$24-$U12)/$V$24), "неверная зона защиты")) -> -2.332421696 | W31: -4.129654022
